bitfinex/quotes_SOLUSD_20230905
["timestamp","ask_amount","ask_price","bid_price","bid_amount"]
[1693938656403,15.1137931,20.317,20.302,7.683]
[1693938656607,22.7917931,20.317,20.302,7.683]
[1693938656902,76.9827931,20.317,20.302,7.683]
[1693938657834,55.0,20.316,20.302,7.683]
[1693938658210,62.678,20.316,20.302,7.683]
[1693938658514,95.4587,20.319,20.302,7.683]
[1693938658823,55.0,20.318,20.307,7.681]
[1693938660208,62.678,20.318,20.307,7.681]
[1693938660619,62.678,20.318,20.305,7.682]
[1693938663717,62.678,20.318,20.306,0.58861433]
[1693938664227,62.678,20.318,20.305,7.682]
[1693938667735,62.678,20.318,20.306,0.93514839]
[1693938669121,62.678,20.318,20.305,7.682]
[1693938669431,55.0,20.318,20.306,0.66268129]
[1693938669633,62.678,20.318,20.304,8.59749327]
[1693938669826,62.678,20.318,20.305,20.0]
[1693938670331,62.678,20.318,20.303,20.0]
[1693938670532,62.678,20.318,20.305,7.682]
[1693938684744,62.678,20.318,20.303,27.683]
[1693938684941,87.483,20.318,20.303,20.0]
[1693938685244,87.483,20.318,20.301,20.0]
[1693938685433,87.483,20.318,20.302,1.04986583]
[1693938685850,87.483,20.318,20.301,20.0]
[1693938686240,87.483,20.318,20.302,1.04986583]
[1693938686434,87.483,20.318,20.302,8.73286583]
[1693938686931,87.483,20.318,20.303,20.0]
[1693938687130,87.483,20.318,20.304,1.04986583]
[1693938687331,87.483,20.318,20.302,1.46478183]
[1693938693050,103.48014,20.318,20.302,1.46478183]
[1693938694347,103.48014,20.318,20.302,9.14778183]
[1693938694550,103.48014,20.318,20.303,20.0]
[1693938694737,103.48014,20.318,20.304,1.46478183]
[1693938694939,103.48014,20.318,20.303,20.0]
[1693938698661,78.67514,20.318,20.303,27.683]
[1693938699158,70.99714,20.318,20.303,27.683]
[1693938702151,15.99714,20.318,20.303,27.683]
[1693938702343,15.99714,20.318,20.304,0.70267927]
[1693938702652,15.99714,20.318,20.307,7.681]
[1693938702870,117.63767044,20.319,20.307,7.681]
[1693938703454,171.72467044,20.319,20.307,7.681]
[1693938704857,55.0,20.318,20.307,7.681]
[1693938708858,62.678,20.318,20.307,7.681]
[1693938709252,55.0,20.318,20.307,7.681]
[1693938710553,117.63767044,20.319,20.307,7.681]
[1693938711354,109.96067044,20.319,20.31,29.26]
[1693938711542,109.96067044,20.319,20.312,7.679]
[1693938712944,109.96067044,20.319,20.31,36.94]
[1693938716850,117.63767044,20.319,20.308,7.681]
[1693938717161,55.0,20.318,20.302,7.683]
[1693938717357,7.679,20.314,20.303,21.34997576]
[1693938717661,7.679,20.314,20.303,20.0]
[1693938717885,7.679,20.314,20.304,1.34997576]
[1693938718356,7.678,20.317,20.304,7.682]
[1693938718564,55.0,20.316,20.304,7.682]
[1693938718757,109.96067044,20.319,20.305,20.0]
[1693938718954,109.96067044,20.319,20.308,7.681]
[1693938725153,109.96067044,20.319,20.31,29.26]
[1693938725354,109.96067044,20.319,20.311,7.68]
[1693938725960,51.05859667,20.336,20.311,7.68]
[1693938725961,44.821,20.325,20.315,7.678]
[1693938726166,44.821,20.325,20.315,32.487]
[1693938726570,7.672,20.333,20.315,32.487]
[1693938726961,44.821,20.331,20.315,32.487]
[1693938727161,7.672,20.333,20.315,32.487]
[1693938728166,55.0,20.332,20.315,32.487]
[1693938728354,62.672,20.332,20.315,32.487]
[1693938729662,54.152,20.334,20.315,32.487]
[1693938729663,54.152,20.334,20.32,29.26]
[1693938729865,3.47982853,20.336,20.324,86.595]
[1693938730175,7.669,20.342,20.328,7.674]
[1693938730354,7.669,20.342,20.33,36.933]
[1693938730559,3.47982853,20.341,20.33,36.933]
[1693938731175,3.47982853,20.339,20.328,7.674]
[1693938731374,3.47982853,20.339,20.324,24.53532786]
[1693938731578,3.47982853,20.339,20.325,20.0]
[1693938732572,29.26,20.33,20.313,0.82140328]
[1693938732780,29.26,20.33,20.319,7.677]
[1693938733072,93.9417,20.329,20.319,7.677]
[1693938734256,7.672,20.332,20.319,7.677]
[1693938736672,55.0,20.331,20.319,7.677]
[1693938736879,62.673,20.331,20.319,7.677]
[1693938737764,7.672,20.333,20.319,7.677]
[1693938739174,7.673,20.331,20.319,7.677]
[1693938739679,55.0,20.33,20.317,7.678]
[1693938739879,7.674,20.329,20.317,7.678]
[1693938740178,55.0,20.33,20.317,7.678]
[1693938741473,62.673,20.33,20.317,7.678]
[1693938741881,55.0,20.33,20.317,7.678]
[1693938742073,55.0,20.331,20.317,7.678]
[1693938743385,62.673,20.331,20.317,7.678]
[1693938744989,62.673,20.331,20.315,7.678]
[1693938749370,62.673,20.331,20.312,9.14478183]
[1693938749576,62.673,20.331,20.287,1251.10227954]
[1693938749577,7.675,20.325,20.309,7.681]
[1693938749788,7.676,20.322,20.309,7.681]
[1693938750178,55.0,20.321,20.309,7.681]
[1693938750581,62.677,20.321,20.309,7.681]
[1693938756903,62.677,20.321,20.305,7.682]
[1693938757084,62.677,20.321,20.303,21.46478183]
[1693938757283,29.43,20.32,20.303,1.46478183]
[1693938757493,29.43,20.32,20.297,49.36532786]
[1693938757494,7.679,20.315,20.301,9.14878183]
[1693938757797,7.68,20.312,20.299,7.684]
[1693938758188,55.0,20.311,20.299,7.684]
[1693938758587,55.0,20.311,20.3,1.46478183]
[1693938758990,55.0,20.311,20.299,7.684]
[1693938759191,55.0,20.311,20.3,1.46478183]
[1693938759501,62.68,20.311,20.299,7.684]
[1693938762497,55.0,20.311,20.299,7.684]
[1693938763891,55.0,20.313,20.3,1.46478183]
[1693938764097,62.679,20.313,20.3,1.46478183]
[1693938765312,62.679,20.313,20.3,7.684]
[1693938765802,62.679,20.313,20.297,1.46478183]
[1693938766010,62.679,20.313,20.298,7.685]
[1693938766206,62.679,20.313,20.299,1.46478183]
[1693938766891,62.679,20.313,20.298,7.685]
[1693938768599,62.679,20.313,20.299,7.685]
[1693938769609,62.679,20.313,20.296,1.46478183]
[1693938769795,62.679,20.313,20.293,21.46478183]
[1693938770107,62.679,20.313,20.293,29.15178183]
[1693938773104,29.43,20.31,20.293,21.46478183]
[1693938773291,7.682,20.305,20.294,20.0]
[1693938773495,55.0,20.304,20.295,1.46478183]
[1693938773807,62.683,20.304,20.292,27.687]
[1693938774009,62.683,20.304,20.293,1.46478183]
[1693938774204,62.683,20.304,20.293,9.15178183]
[1693938774408,55.0,20.304,20.294,20.0]
[1693938774602,55.0,20.305,20.294,27.686]
[1693938775802,55.0,20.305,20.295,1.46478183]
[1693938778405,55.0,20.305,20.295,7.686]
[1693938779013,7.683,20.303,20.294,20.0]
[1693938779209,55.0,20.302,20.293,7.687]
[1693938779505,55.0,20.302,20.294,20.0]
[1693938779910,55.0,20.304,20.294,20.0]
[1693938781699,55.0,20.304,20.294,27.686]
[1693938781899,55.0,20.304,20.294,20.0]
[1693938782204,55.0,20.304,20.293,7.687]
[1693938782403,147.15,20.3,20.271,98.166]
[1693938782710,4.94461036,20.291,20.275,7.693]
[1693938782916,7.688,20.29,20.275,7.693]
[1693938783101,4.94461036,20.288,20.275,7.693]
[1693938783295,55.0,20.287,20.273,7.694]
[1693938783693,55.0,20.288,20.273,7.694]
[1693938785210,7.689,20.287,20.271,7.695]
[1693938785448,55.0,20.286,20.272,7.695]
[1693938785611,62.689,20.288,20.272,7.695]
[1693938785918,91.2525,20.285,20.27,37.125]
[1693938786214,55.0,20.284,20.27,37.125]
[1693938786813,55.0,20.284,20.271,20.0]
[1693938787311,55.0,20.284,20.271,27.695]
[1693938787512,55.0,20.284,20.269,7.696]
[1693938788016,91.2525,20.285,20.269,7.696]
[1693938788318,54.278,20.284,20.267,7.697]
[1693938788501,7.691,20.283,20.267,7.697]
[1693938789310,55.0,20.282,20.267,7.697]
[1693938789519,55.0,20.282,20.267,32.565]
[1693938789708,54.278,20.284,20.267,32.565]
[1693938789709,55.0,20.283,20.267,32.565]
[1693938789908,55.0,20.284,20.267,32.565]
[1693938790411,109.28,20.284,20.267,32.565]
[1693938792206,109.28,20.284,20.267,7.697]
[1693938792405,116.971,20.284,20.267,7.697]
[1693938793816,62.691,20.284,20.267,7.697]
[1693938794919,32.562,20.284,20.267,7.697]
[1693938796207,55.0,20.283,20.267,7.697]
[1693938796415,7.691,20.282,20.267,7.697]
[1693938796610,55.0,20.281,20.265,7.697]
[1693938796806,62.692,20.281,20.266,55.0]
[1693938797314,55.0,20.281,20.266,62.697]
[1693938797522,62.691,20.283,20.266,62.697]
[1693938798211,62.691,20.283,20.266,7.697]
[1693938798612,62.691,20.283,20.264,7.698]
[1693938798814,62.691,20.283,20.265,20.0]
[1693938799024,62.691,20.283,20.265,27.697]
[1693938799216,62.691,20.283,20.262,7.698]
[1693938799417,62.691,20.283,20.263,20.0]
[1693938800323,7.691,20.283,20.263,20.0]
[1693938800626,7.691,20.283,20.263,27.698]
[1693938801821,7.693,20.279,20.263,27.698]
[1693938802327,55.0,20.278,20.263,27.698]
[1693938802532,62.693,20.278,20.263,27.698]
[1693938802917,55.0,20.278,20.263,27.698]
[1693938803230,55.0,20.279,20.263,27.698]
[1693938804309,62.693,20.279,20.263,27.698]
[1693938804508,62.693,20.279,20.263,20.0]
[1693938804723,62.693,20.279,20.262,20.0]
[1693938804929,62.693,20.279,20.261,7.699]
[1693938805110,62.693,20.279,20.26,29.43]
[1693938806511,62.693,20.279,20.26,37.129]
[1693938807312,20.0,20.278,20.26,37.129]
[1693938807513,7.693,20.276,20.26,37.129]
[1693938807719,55.0,20.275,20.26,37.129]
[1693938808128,95.4585,20.274,20.26,37.129]
[1693938808318,55.0,20.273,20.26,37.129]
[1693938811231,55.0,20.273,20.26,29.43]
[1693938812941,7.692,20.28,20.261,75.0]
[1693938813137,7.692,20.28,20.265,7.697]
[1693938813627,7.692,20.28,20.263,7.698]
[1693938813827,7.692,20.28,20.264,75.0]
[1693938814031,7.692,20.28,20.264,27.698]
[1693938814032,55.0,20.279,20.264,27.698]
[1693938814233,7.693,20.278,20.264,27.698]
[1693938814535,55.0,20.277,20.264,27.698]
[1693938815533,151.2791,20.277,20.264,27.698]
[1693938815737,7.692,20.28,20.264,27.698]
[1693938816036,7.692,20.28,20.265,55.0]
[1693938816333,7.692,20.28,20.265,62.697]
[1693938817227,55.0,20.279,20.265,7.697]
[1693938817823,55.0,20.281,20.265,7.697]
[1693938818840,1.99999999,20.28,20.265,7.697]
[1693938819029,7.693,20.278,20.265,7.697]
[1693938819228,1.99999999,20.277,20.265,7.697]
[1693938820036,1.99999999,20.279,20.265,7.697]
[1693938820542,56.99999999,20.279,20.265,7.697]
[1693938822638,1.99999999,20.279,20.265,7.697]
[1693938827746,1.99999999,20.279,20.266,55.0]
[1693938828048,1.99999999,20.281,20.27,29.56]
[1693938828249,96.2791,20.282,20.271,7.695]
[1693938828547,1.99999999,20.281,20.271,7.695]
[1693938828753,1.99999999,20.281,20.26,108.38632786]
[1693938828754,7.692,20.281,20.26,108.38632786]
[1693938828940,7.692,20.281,20.263,7.698]
[1693938829135,1.99999999,20.28,20.263,7.698]
[1693938829338,156.59389999,20.28,20.263,7.698]
[1693938829540,7.692,20.279,20.263,7.698]
[1693938829750,1.99999999,20.277,20.263,7.698]
[1693938830346,1.99999999,20.278,20.263,7.698]
[1693938832047,9.69299999,20.278,20.263,7.698]
[1693938833157,1.99999999,20.278,20.263,7.698]
[1693938833842,9.69299999,20.278,20.263,7.698]
[1693938834256,55.0,20.277,20.263,7.698]
[1693938834551,1.99999999,20.276,20.263,7.698]
[1693938835140,1.99999999,20.277,20.263,7.698]
[1693938836242,107.2859,20.28,20.263,7.698]
[1693938836243,1.99999999,20.279,20.263,7.698]
[1693938836948,56.99999999,20.279,20.263,32.23332786]
[1693938838251,1.99999999,20.279,20.263,32.23332786]
[1693938839547,56.99999999,20.279,20.263,32.23332786]
[1693938839952,155.81009999,20.279,20.263,32.23332786]
[1693938842461,155.81009999,20.279,20.263,7.698]
[1693938847759,100.81009999,20.279,20.263,7.698]
[1693938847971,108.50209999,20.279,20.263,7.698]
[1693938849367,1.99999999,20.277,20.263,7.698]
[1693938857059,1.99999999,20.278,20.27,29.58]
[1693938857374,137.72026781,20.279,20.27,37.275]
[1693938857558,137.72026781,20.279,20.268,7.696]
[1693938857760,1.99999999,20.278,20.266,7.697]
[1693938862059,98.8101,20.279,20.266,7.697]
[1693938863177,1.99999999,20.277,20.266,7.697]
[1693938863368,55.0,20.278,20.266,7.697]
[1693938863572,1.99999999,20.277,20.266,7.697]
[1693938864074,1.99999999,20.278,20.266,7.697]
[1693938865174,56.99999999,20.278,20.266,7.697]
[1693938865368,1.99999999,20.275,20.259,24.877]
[1693938865568,7.694,20.274,20.261,7.699]
[1693938865768,1.99999999,20.272,20.259,7.7]
[1693938865968,62.695,20.273,20.256,7.701]
[1693938865969,9.69599999,20.269,20.256,7.701]
[1693938866171,55.0,20.268,20.256,7.701]
[1693938866369,9.69699999,20.267,20.254,7.702]
[1693938866570,1.99999999,20.265,20.254,7.702]
[1693938866990,55.0,20.266,20.254,7.702]
[1693938867485,7.698,20.265,20.254,7.702]
[1693938868390,55.0,20.264,20.25,29.58]
[1693938868592,7.699,20.261,20.25,29.58]
[1693938868791,55.0,20.264,20.25,29.58]
[1693938869094,7.698,20.263,20.25,37.283]
[1693938869280,55.0,20.262,20.251,20.0]
[1693938869669,55.0,20.262,20.251,27.703]
[1693938869870,55.0,20.262,20.251,52.23832786]
[1693938870095,55.0,20.264,20.251,52.23832786]
[1693938870766,62.698,20.264,20.251,52.23832786]
[1693938872382,62.698,20.264,20.251,32.23832786]
[1693938872591,62.698,20.264,20.242,98.307]
[1693938872592,29.58,20.26,20.247,7.704]
[1693938872799,55.0,20.259,20.247,7.704]
[1693938872969,154.8321,20.259,20.247,7.704]
[1693938873376,154.8321,20.259,20.247,32.596]
[1693938873576,24.895,20.261,20.25,29.58]
[1693938873881,1.99999999,20.266,20.254,7.701]
[1693938874477,9.69699999,20.266,20.254,7.701]
[1693938875505,1.99999999,20.266,20.254,7.701]
[1693938875792,7.694,20.274,20.261,7.699]
[1693938876403,1.99999999,20.273,20.261,7.699]
[1693938876693,9.69499999,20.273,20.261,7.699]
[1693938877288,55.0,20.272,20.261,7.699]
[1693938877585,9.69499999,20.273,20.261,7.699]
[1693938877586,1.99999999,20.273,20.261,7.699]
[1693938877774,1.99999999,20.275,20.261,7.699]
[1693938878790,64.69399999,20.275,20.261,7.699]
[1693938879285,9.69399999,20.275,20.261,7.699]
[1693938880497,1.99999999,20.277,20.261,32.574]
[1693938880687,14.99259989,20.278,20.272,7.695]
[1693938880884,14.99259989,20.278,20.27,29.58]
[1693938882181,14.99259989,20.278,20.271,7.695]
[1693938883585,1.99999999,20.277,20.271,7.695]
[1693938883984,14.99259989,20.278,20.271,7.695]
[1693938884188,1.99999999,20.277,20.269,7.696]
[1693938885487,14.99259989,20.278,20.269,7.696]
[1693938885686,1.99999999,20.277,20.269,7.696]
[1693938888990,14.99259989,20.278,20.269,7.696]
[1693938889303,14.99259989,20.278,20.262,24.873]
[1693938889511,1.99999999,20.277,20.263,75.0]
[1693938890697,1.99999999,20.277,20.268,7.696]
[1693938891787,14.99259989,20.278,20.268,7.696]
[1693938892595,1.99999999,20.277,20.268,7.696]
[1693938893098,1.99999999,20.277,20.268,7.196]
[1693938893308,14.99259989,20.278,20.268,7.196]
[1693938894492,2.49999999,20.277,20.268,7.196]
[1693938896201,14.99259989,20.278,20.268,7.196]
[1693938896504,2.49999999,20.277,20.268,7.196]
[1693938898203,14.99259989,20.278,20.268,7.196]
[1693938899314,2.49999999,20.277,20.268,7.196]
[1693938899605,2.49999999,20.277,20.263,20.0]
[1693938899905,2.49999999,20.277,20.261,20.0]
[1693938900098,2.49999999,20.277,20.268,7.696]
[1693938901298,14.99259989,20.278,20.268,7.696]
[1693938902207,2.49999999,20.277,20.268,7.696]
[1693938907897,2.49999999,20.277,20.27,29.57]
[1693938908300,2.49999999,20.277,20.271,7.695]
[1693938908718,14.99259989,20.278,20.271,7.695]
[1693938909523,14.99259989,20.278,20.27,29.57]
[1693938909906,2.49999999,20.277,20.27,29.57]
[1693938910909,263.26089915,20.276,20.25,29.57]
[1693938911110,86.834,20.269,20.25,29.57]
[1693938911312,153.52583181,20.268,20.25,29.57]
[1693938911516,32.571,20.263,20.25,29.62]
[1693938911798,55.0,20.262,20.25,29.62]
[1693938912013,7.7,20.259,20.25,29.62]
[1693938912214,7.7,20.259,20.244,7.705]
[1693938912613,7.699,20.261,20.244,7.705]
[1693938912819,55.0,20.26,20.244,7.705]
[1693938913907,62.7,20.26,20.244,7.705]
[1693938916416,7.7,20.258,20.242,7.706]
[1693938916615,55.0,20.257,20.243,20.0]
[1693938916819,62.701,20.257,20.243,20.0]
[1693938917417,62.701,20.257,20.243,27.706]
[1693938919109,62.701,20.257,20.24,29.63]
[1693938919304,62.701,20.257,20.241,20.0]
[1693938922028,62.701,20.257,20.24,37.337]
[1693938922226,62.701,20.257,20.24,29.63]
[1693938924611,7.701,20.257,20.24,37.337]
[1693938924812,7.701,20.257,20.24,37.347]
[1693938925127,7.701,20.257,20.24,29.64]
[1693938925625,7.701,20.257,20.24,37.347]
[1693938926731,55.0,20.256,20.24,37.347]
[1693938926932,7.702,20.254,20.24,37.347]
[1693938928048,7.702,20.254,20.24,29.64]
[1693938929231,7.702,20.254,20.24,37.347]
[1693938931927,7.702,20.254,20.24,29.64]
[1693938932732,7.702,20.254,20.241,55.0]
[1693938932929,7.702,20.254,20.242,20.0]
[1693938933133,7.702,20.254,20.242,27.706]
[1693938934137,95.6966,20.259,20.242,27.706]
[1693938934537,55.0,20.258,20.242,27.706]
[1693938935243,7.701,20.256,20.242,27.706]
[1693938935424,55.0,20.255,20.242,27.706]
[1693938935625,62.702,20.255,20.242,27.706]
[1693938936737,160.21904443,20.259,20.242,27.706]
[1693938937040,7.701,20.257,20.242,27.706]
[1693938947443,55.0,20.256,20.242,27.706]
[1693938951447,15.07262845,20.257,20.242,52.604]
[1693938951652,15.07262845,20.257,20.242,32.604]
[1693938951853,15.07262845,20.257,20.245,7.705]
[1693938952254,22.77362845,20.257,20.245,7.705]
[1693938963941,15.07262845,20.257,20.245,7.705]
[1693938964251,15.07262845,20.257,20.25,29.63]
[1693938968868,15.07262845,20.257,20.246,7.705]
[1693938973866,55.0,20.256,20.246,7.705]
[1693938974571,15.07262845,20.257,20.246,7.705]
[1693938974756,14.57262845,20.257,20.246,7.705]
[1693938981171,7.697,20.266,20.25,29.63]
[1693938981470,17.32962961,20.269,20.253,32.586]
[1693938981770,2.49999999,20.269,20.253,32.586]
[1693938982270,10.19599999,20.269,20.253,7.702]
[1693938983274,55.0,20.268,20.253,7.702]
[1693938983473,7.697,20.266,20.253,7.702]
[1693938983662,55.0,20.265,20.253,7.702]
[1693938986871,7.697,20.266,20.253,7.702]
[1693938988373,2.49999999,20.267,20.253,32.587]
[1693938990777,57.49999999,20.268,20.253,32.587]
[1693938991266,155.31169999,20.268,20.253,32.587]
[1693938993174,100.31169999,20.268,20.253,32.587]
[1693938993383,100.31169999,20.268,20.26,29.63]
[1693938993770,100.31169999,20.268,20.257,7.7]
[1693938997087,100.31169999,20.268,20.261,7.699]
[1693938997272,97.8117,20.268,20.261,7.699]
[1693938997472,97.8117,20.268,20.26,29.63]
[1693938998182,44.44481481,20.274,20.262,7.698]
[1693938998373,2.49999999,20.273,20.262,7.698]
[1693939006280,65.19499999,20.273,20.26,29.63]
[1693939009099,65.19499999,20.273,20.257,7.701]
[1693939009290,25.78456007,20.272,20.257,7.701]
[1693939009600,2.49999999,20.269,20.257,7.701]
[1693939010698,57.49999999,20.271,20.257,7.701]
[1693939011400,2.49999999,20.271,20.257,7.701]
[1693939011592,57.49999999,20.271,20.257,7.701]
[1693939012092,65.19599999,20.271,20.257,7.701]
[1693939012296,57.49999999,20.271,20.257,7.701]
[1693939012500,57.49999999,20.273,20.257,7.701]
[1693939013399,57.49999999,20.273,20.251,58.88987653]
[1693939013400,29.63,20.27,20.251,20.0]
[1693939013595,7.698,20.265,20.251,20.0]
[1693939013791,55.0,20.264,20.251,27.703]
[1693939014798,55.0,20.266,20.251,27.703]
[1693939014994,109.518,20.266,20.251,27.703]
[1693939016095,55.0,20.266,20.251,27.703]
[1693939019695,62.697,20.266,20.251,27.703]
[1693939020610,55.0,20.266,20.251,27.703]
[1693939024310,55.0,20.266,20.251,52.23832786]
[1693939024507,15.03259258,20.267,20.251,27.703]
[1693939024714,2.49999999,20.266,20.252,79.53532786]
[1693939024897,2.49999999,20.266,20.255,7.701]
[1693939028709,15.03259258,20.267,20.255,7.701]
[1693939029214,2.49999999,20.266,20.255,7.701]
[1693939029416,15.03259258,20.267,20.255,7.701]
[1693939031411,93.1813,20.269,20.255,7.701]
[1693939031619,2.49999999,20.268,20.26,29.63]
[1693939031916,93.1813,20.269,20.26,37.329]
[1693939037017,29.63,20.28,20.26,37.329]
[1693939037209,2.49999999,20.279,20.261,75.0]
[1693939037525,14.59131292,20.28,20.266,7.697]
[1693939037718,2.49999999,20.279,20.266,7.697]
[1693939037922,10.19199999,20.281,20.266,7.697]
[1693939038126,19.742408,20.28,20.266,7.697]
[1693939038309,2.49999999,20.279,20.266,7.697]
[1693939039819,57.49999999,20.279,20.266,7.697]
[1693939040324,161.83659999,20.279,20.264,7.698]
[1693939040521,161.83659999,20.279,20.265,20.0]
[1693939041120,161.83659999,20.279,20.263,20.0]
[1693939042515,161.83659999,20.279,20.263,27.698]
[1693939048216,161.83659999,20.279,20.263,20.0]
[1693939048412,161.83659999,20.279,20.262,20.0]
[1693939049223,176.33314489,20.279,20.262,20.0]
[1693939052331,201.18614489,20.279,20.262,20.0]
[1693939061236,201.18614489,20.279,20.262,19.5]
[1693939063938,201.18614489,20.279,20.263,20.0]
[1693939064134,201.18614489,20.279,20.261,20.0]
[1693939064931,121.33314489,20.279,20.261,44.53532786]
[1693939066345,55.0,20.278,20.261,44.53532786]
[1693939066541,10.69299999,20.277,20.261,44.53532786]
[1693939066742,55.0,20.276,20.261,44.53532786]
[1693939066938,2.99999999,20.275,20.261,44.53532786]
[1693939069131,2.99999999,20.275,20.261,20.0]
[1693939070049,2.99999999,20.275,20.261,44.53532786]
[1693939070543,2.99999999,20.276,20.262,55.0]
[1693939070746,2.99999999,20.276,20.263,20.0]
[1693939073653,57.99999999,20.278,20.263,20.0]
[1693939076037,57.99999999,20.278,20.263,44.53532786]
[1693939085046,2.99999999,20.278,20.27,29.63]
[1693939085852,2.99999999,20.278,20.263,20.0]
[1693939086157,57.99999999,20.278,20.263,20.0]
[1693939086342,7.693,20.277,20.263,20.0]
[1693939086655,2.99999999,20.276,20.263,20.0]
[1693939087548,2.99999999,20.277,20.263,20.0]
[1693939089256,65.69299999,20.277,20.263,20.0]
[1693939089559,65.69299999,20.277,20.262,20.0]
[1693939089943,65.69299999,20.277,20.261,20.0]
[1693939092157,2.99999999,20.277,20.261,44.53532786]
[1693939092359,2.99999999,20.278,20.262,79.53532786]
[1693939092663,2.99999999,20.278,20.263,20.0]
[1693939092955,2.99999999,20.278,20.264,55.0]
[1693939093457,2.99999999,20.278,20.265,20.0]
[1693939101668,2.99999999,20.278,20.27,29.63]
[1693939102252,10.69099999,20.282,20.27,29.63]
[1693939108265,55.0,20.281,20.27,29.63]
[1693939108474,2.99999999,20.28,20.27,29.63]
[1693939110468,2.99999999,20.281,20.27,28.63]
[1693939110768,2.99999999,20.281,20.27,29.63]
[1693939112377,3.99999999,20.277,20.27,29.63]
[1693939113268,3.99999999,20.278,20.27,29.63]
[1693939113574,11.69299999,20.278,20.26,29.63]
[1693939113765,55.0,20.277,20.26,29.63]
[1693939113958,32.557,20.272,20.26,29.63]
[1693939114273,7.696,20.27,20.252,24.53532786]
[1693939114472,3.99999999,20.269,20.253,20.0]
[1693939114659,66.69599999,20.269,20.253,20.0]
[1693939116060,66.69599999,20.269,20.254,55.0]
[1693939116375,66.69599999,20.269,20.255,20.0]
[1693939118460,66.69599999,20.269,20.253,20.0]
[1693939119263,66.69599999,20.269,20.253,44.53532786]
[1693939122070,58.99999999,20.269,20.254,24.53532786]
[1693939122373,14.77492595,20.272,20.254,24.53532786]
[1693939122374,3.99999999,20.272,20.26,29.63]
[1693939122562,11.69499999,20.272,20.26,29.63]
[1693939123377,3.99999999,20.272,20.26,29.63]
[1693939123960,58.99999999,20.272,20.26,29.63]
[1693939124380,66.69499999,20.272,20.26,29.63]
[1693939129867,29.63,20.27,20.25,29.63]
[1693939130073,7.698,20.265,20.251,20.0]
[1693939130267,55.0,20.264,20.251,20.0]
[1693939130574,7.698,20.263,20.251,20.0]
[1693939131077,55.0,20.264,20.251,20.0]
[1693939131276,55.0,20.264,20.244,50.87914429]
[1693939131277,29.63,20.26,20.24,29.63]
[1693939131470,7.701,20.256,20.241,44.53532786]
[1693939131675,7.701,20.256,20.242,24.53532786]
[1693939131874,7.701,20.256,20.243,20.0]
[1693939133579,55.0,20.255,20.243,20.0]
[1693939134165,62.701,20.255,20.243,20.0]